fUST/lending_fUST_20251108
["ID","MTS","AMOUNT","RATE_DAILY","PERIOD"]
[393383906,1762560632335,-500.0,0.00022799,2]
[393383907,1762560632345,-500.0,0.00022799,2]
[393383909,1762560632354,-500.0,0.00022799,2]
[393383911,1762560632363,-500.0,0.00022799,2]
[393383913,1762560632373,-500.0,0.00022799,2]
[393383915,1762560632382,-500.0,0.00022799,2]
[393383917,1762560632391,-416.28898968,0.00022799,2]
[393383918,1762560632400,-500.0,0.00022799,2]
[393383920,1762560632410,-582.61272205,0.00022799,2]
[393383922,1762560632419,-212.34681707,0.00022799,2]
[393383923,1762560632428,-500.0,0.00022799,2]
[393383924,1762560632436,-500.0,0.00022799,2]
[393383925,1762560632445,-500.0,0.00022799,2]
[393383926,1762560632455,-500.0,0.00022799,2]
[393383927,1762560632464,-500.0,0.00022799,2]
[393383928,1762560632473,-500.0,0.00022799,2]
[393383929,1762560632482,-293.0023959,0.00022799,2]
[393383930,1762560632492,-500.0,0.00022799,2]
[393383931,1762560632501,-500.0,0.00022799,2]
[393383932,1762560632510,-500.0,0.00022799,2]
[393383933,1762560632520,-500.0,0.00022799,2]
[393383934,1762560632528,-500.0,0.00022799,2]
[393383935,1762560632538,-174.12689537,0.000228,2]
[393383936,1762560632547,-46417.52666644,0.000228,2]
[393383937,1762560632556,-151.19,0.000228,2]
[393383938,1762560632566,-151.19,0.000228,2]
[393383939,1762560632579,-151.19,0.000228,2]
[393383940,1762560632588,-151.19,0.000228,2]
[393383941,1762560632598,-151.19,0.000228,2]
[393383942,1762560632607,-151.19,0.000228,2]
[393383943,1762560632620,-151.19,0.000228,2]
[393383944,1762560632629,-151.19,0.000228,2]
[393383945,1762560632638,-151.19,0.000228,2]
[393383946,1762560632647,-151.1,0.000228,2]
[393383947,1762560632656,-2241.93,0.0002289,10]
[393383948,1762560632666,-1868.27,0.0002289,10]
[393383949,1762560632676,-1556.89,0.0002289,10]
[393383950,1762560632686,-50406.24098142,0.000229,2]
[393383951,1762560632700,-534.08120531,0.000229,2]
[393383952,1762560632711,-263.05441659,0.000229,2]
[393383953,1762560632735,-150.00364513,0.000229,2]
[393383957,1762560637778,-1839.38992111,0.000229,2]
[393383958,1762560637790,-8524.56,0.000229,2]
[393383959,1762560637802,-20158.79036217,0.000229,2]
[393384007,1762560643115,-1105.3,0.000229,2]
[393384177,1762560646429,-1297.41,0.0002289,10]
[393384178,1762560646439,-3874.09,0.000229,2]
[393384179,1762560646782,-10695.95566272,0.000229,2]
[393384180,1762560651349,500.0,0.00037025,60]
[393384181,1762560651468,509.2853007,0.00037025,60]
[393384183,1762560683708,1000.0,0.00037025,35]
[393384184,1762560684026,1000.0,0.00037025,35]
[393384186,1762560748252,1000.0,0.00037025,35]
[393384187,1762560748533,1000.0,0.00037025,35]
[393384190,1762560812724,1000.0,0.00037025,35]
[393384191,1762560813032,1000.0,0.00037025,35]
[393384194,1762560877008,1000.0,0.0003702,35]
[393384195,1762560877324,1000.0,0.0003702,35]
[393384198,1762560919094,151.0,0.0003702,60]
[393384199,1762560919748,156.587,0.0003702,60]
[393384200,1762560920377,162.380719,0.0003702,60]
[393384201,1762560920978,168.3888056,0.0003702,60]
[393384202,1762560921612,174.61919141,0.0003702,60]
[393384203,1762560922234,181.08010149,0.0003702,60]
[393384204,1762560922882,181.08010149,0.0003702,60]
[393384205,1762560941026,1000.0,0.0003702,35]
[393384206,1762560941334,1000.0,0.0003702,35]
[393384211,1762560995374,2952.20367876,0.00014353,2]
[393384212,1762560995397,751.83027524,0.00014353,2]
[393384213,1762560995736,3704.033954,0.00014595,2]
[393384214,1762560996036,3704.033954,0.00015006,2]
[393384215,1762560996350,1840.11181676,0.00015072,2]
[393384216,1762560996380,1863.92213724,0.00015072,2]
[393384217,1762560996636,3704.033954,0.00015434,2]
[393384218,1762560996967,3704.033954,0.0001579,2]
[393384219,1762560997269,728.01995476,0.00016111,2]
[393384220,1762560997293,2976.01399924,0.00016111,2]
[393384221,1762560997579,3704.033954,0.00016419,2]
[393384222,1762560997874,3319.96204676,0.00016621,2]
[393384223,1762560997897,384.07190724,0.00016621,2]
[393384224,1762560998168,3704.033954,0.00016939,2]
[393384225,1762560998613,3704.033954,0.00017157,2]
[393384226,1762561005440,1000.0,0.0003702,35]
[393384227,1762561005760,1000.0,0.0003702,35]
[393384231,1762561069385,1000.0,0.0003702,35]
[393384232,1762561069711,1000.0,0.0003702,35]
[393384235,1762561131999,2207.87018476,0.000172,2]
[393384236,1762561132023,522.47981524,0.000172,2]
[393384237,1762561133436,1000.0,0.0003702,35]
[393384238,1762561133737,1000.0,0.0003702,35]
[393384248,1762561530302,653.83945049,0.0003287,120]
[393384281,1762561706468,9477.53018476,0.00017,2]
[393384282,1762561706493,10000.01,0.00017,2]
[393384283,1762561706517,10000.01,0.00017,2]
[393384284,1762561706542,7404.63680709,0.00017,2]
[393384288,1762561714885,214.17447568,0.00016,2]
[393384289,1762561785188,5732.35275071,0.00037025,20]
[393384290,1762561787117,5000.0,0.00017263,2]
[393384291,1762561810567,-5000.0,0.00017215,2]
[393384292,1762561823079,906.5,0.00032876,120]
[393384334,1762561832011,-5000.0,0.00017215,2]
[393384336,1762561832020,-285.95221051,0.00017379,2]
[393384338,1762561832030,-3704.033954,0.00017389,2]
[393384340,1762561832039,-847.0,0.00017479,2]
[393384341,1762561832049,-179.59073738,0.00017506,2]
[393384343,1762561832058,-1200.0,0.00017532,2]
[393384345,1762561832068,-300.0,0.00017532,2]
[393384347,1762561832077,-300.0,0.00017532,2]
[393384349,1762561832085,-14543.90422855,0.00017533,2]
[393384351,1762561832106,-698.75772006,0.00017533,2]
[393384354,1762561832130,-1434.9882294,0.00017533,2]
[393384386,1762561838028,-1643.70675034,0.00017533,2]
[393384387,1762561838040,-592.401,0.00017533,2]
[393384388,1762561838087,-2376.25930215,0.00017533,2]
[393384389,1762561838097,-3704.033954,0.00017787,2]
[393384390,1762561838107,-3704.033954,0.00017971,2]
[393384391,1762561838116,-3704.033954,0.00018226,2]
[393384392,1762561838126,-3704.033954,0.00018442,2]
[393384393,1762561838136,-3704.033954,0.00018724,2]
[393384394,1762561838146,-3704.033954,0.00018919,2]
[393384395,1762561838156,-420.0,0.00019138,2]
[393384396,1762561838165,-3704.033954,0.0001929,2]
[393384397,1762561838175,-257.64,0.000193,2]
[393384398,1762561838185,-257.64,0.000193,2]
[393384399,1762561838194,-257.54,0.000193,2]
[393384400,1762561838302,-257.64,0.000194,2]
[393384401,1762561838312,-257.64,0.000194,2]
[393384402,1762561838322,-257.64,0.000194,2]
[393384403,1762561838331,-500.0,0.00019486,2]
[393384404,1762561838341,-157.3654433,0.00019486,2]
[393384405,1762561838352,-500.0,0.00019486,2]
[393384406,1762561838362,-371.23014468,0.00019486,2]
[393384407,1762561838372,-500.0,0.00019486,2]
[393384408,1762561838382,-500.0,0.00019486,2]
[393384409,1762561838391,-500.0,0.00019486,2]
[393384410,1762561838401,-500.0,0.00019486,2]
[393384411,1762561838412,-500.0,0.00019486,2]
[393384412,1762561838423,-500.0,0.00019486,2]
[393384413,1762561838434,-500.0,0.00019486,2]
[393384414,1762561838444,-419.24726828,0.00019486,2]
[393384415,1762561838454,-142.78943186,0.00019486,2]
[393384416,1762561838467,-357.21056814,0.00019486,2]
[393384417,1762561838477,-500.0,0.00019486,2]
[393384418,1762561838487,-500.0,0.00019486,2]
[393384419,1762561838497,-500.0,0.00019486,2]
[393384420,1762561838507,-500.0,0.00019486,2]
[393384421,1762561838517,-500.0,0.00019486,2]
[393384422,1762561838531,-500.0,0.00019486,2]
[393384423,1762561838542,-500.0,0.00019486,2]
[393384424,1762561838551,-500.0,0.00019486,2]
[393384425,1762561838562,-500.0,0.00019486,2]
[393384426,1762561838572,-392.67208497,0.00019486,2]
[393384427,1762561838582,-500.0,0.00019486,2]
[393384428,1762561838592,-500.0,0.00019486,2]
[393384429,1762561838602,-500.0,0.00019486,2]
[393384430,1762561838612,-500.0,0.00019486,2]
[393384431,1762561838622,-500.0,0.00019486,2]
[393384432,1762561838633,-500.0,0.00019486,2]
[393384433,1762561838643,-500.0,0.00019486,2]
[393384434,1762561838654,-500.0,0.00019486,2]
[393384435,1762561838666,-500.0,0.00019486,2]
[393384436,1762561838677,-500.0,0.00019486,2]
[393384437,1762561838688,-500.0,0.00019486,2]
[393384438,1762561838698,-500.0,0.00019486,2]
[393384439,1762561838709,-500.0,0.00019486,2]
[393384440,1762561838719,-500.0,0.00019486,2]
[393384441,1762561838730,-500.0,0.00019486,2]
[393384442,1762561838742,-500.0,0.00019486,2]
[393384443,1762561838752,-500.0,0.00019486,2]
[393384444,1762561838763,-500.0,0.00019487,2]
[393384445,1762561838773,-257.64,0.000195,2]
[393384446,1762561838783,-257.64,0.000195,2]
[393384447,1762561838793,-257.64,0.000195,2]
[393384448,1762561838803,-257.64,0.000195,2]
[393384449,1762561838812,-211.91707011,0.00019506,2]
[393384450,1762561838822,-165.34675057,0.00019563,2]
[393384451,1762561838832,-257.64,0.000196,2]
[393384452,1762561838843,-257.64,0.000196,2]
[393384453,1762561838855,-257.64,0.000196,2]
[393384454,1762561838865,-257.64,0.000197,2]
[393384455,1762561838876,-257.64,0.000197,2]
[393384456,1762561838885,-257.64,0.000197,2]
[393384457,1762561838895,-3704.033954,0.00019709,2]
[393384458,1762561838907,-500.0,0.00019761,2]
[393384459,1762561838917,-257.64,0.000198,2]
[393384460,1762561838927,-257.64,0.000198,2]
[393384461,1762561838937,-257.64,0.000198,2]
[393384462,1762561838947,-257.64,0.000199,2]
[393384463,1762561838957,-257.64,0.000199,2]
[393384464,1762561838966,-257.64,0.000199,2]
[393384465,1762561838976,-257.64,0.000199,2]
[393384466,1762561838986,-3704.033954,0.00019992,2]
[393384467,1762561838999,-257.64,0.0002,2]
[393384468,1762561839009,-257.64,0.0002,2]
[393384469,1762561839018,-257.64,0.0002,2]
[393384470,1762561839028,-257.64,0.000201,2]
[393384471,1762561839038,-257.64,0.000201,2]
[393384472,1762561839048,-257.64,0.000201,2]
[393384473,1762561839058,-3704.033954,0.00020137,2]
[393384474,1762561839070,-257.64,0.000202,2]
[393384475,1762561839080,-257.64,0.000202,2]
[393384476,1762561839090,-257.64,0.000202,2]
[393384477,1762561839100,-257.64,0.000203,2]
[393384478,1762561839110,-257.64,0.000203,2]
[393384479,1762561839120,-257.64,0.000203,2]
[393384480,1762561839130,-257.64,0.000203,2]
[393384481,1762561839141,-3704.033954,0.00020302,2]
[393384482,1762561839150,-257.64,0.000204,2]
[393384483,1762561839163,-257.64,0.000204,2]
[393384484,1762561839173,-257.64,0.000204,2]
[393384485,1762561839183,-257.64,0.000205,2]
[393384486,1762561839193,-257.64,0.000205,2]
[393384487,1762561839203,-257.64,0.000205,2]
[393384488,1762561839214,-257.64,0.000206,2]
[393384489,1762561839224,-257.64,0.000206,2]
[393384490,1762561839234,-257.64,0.000206,2]
[393384491,1762561839245,-257.64,0.000207,2]
[393384492,1762561839258,-257.64,0.000207,2]
[393384493,1762561839269,-257.64,0.000207,2]
[393384494,1762561839280,-257.64,0.000207,2]
[393384495,1762561839291,-588.71,0.00020749,10]
[393384496,1762561839302,-3704.033954,0.00020759,2]
[393384497,1762561839312,-257.64,0.000208,2]
[393384498,1762561839323,-587.0,0.00020892,2]
[393384499,1762561839333,-3704.033954,0.00020925,2]
[393384500,1762561839342,-3704.033954,0.00021186,2]
[393384501,1762561839353,-3704.033954,0.00021375,2]
[393384502,1762561839364,-244.24340283,0.00021506,2]
[393384503,1762561839374,-307.55307641,0.00021703,2]
[393384504,1762561839384,-351.48923018,0.00021703,2]
[393384505,1762561839393,-548.65272023,0.00021703,2]
[393384506,1762561839402,-151.0,0.00021788,2]
[393384507,1762561839414,-3704.033954,0.00021798,2]
[393384508,1762561839424,-156.252343,0.00021918,7]
[393384509,1762561839433,-156.252343,0.00021918,7]
[393384510,1762561839443,-156.252343,0.00021918,7]
[393384511,1762561839453,-156.252343,0.00021918,7]
[393384512,1762561839463,-3704.033954,0.00021957,2]
[393384513,1762561839473,-500.0,0.00022108,2]
[393384514,1762561839483,-500.0,0.00022108,2]
[393384515,1762561839493,-151.0,0.00022153,2]
[393384516,1762561839502,-151.0,0.00022153,2]
[393384517,1762561839512,-156.252343,0.00022154,7]
[393384518,1762561839521,-156.252343,0.00022154,7]
[393384519,1762561839531,-156.252343,0.00022154,7]
[393384520,1762561839541,-156.252343,0.00022154,7]
[393384521,1762561839551,-156.252343,0.00022154,7]
[393384522,1762561839561,-156.252343,0.00022154,7]
[393384523,1762561839571,-156.252343,0.00022154,7]
[393384524,1762561839581,-156.252343,0.00022154,7]
[393384525,1762561839591,-299.8681509,0.00022168,2]
[393384526,1762561839600,-299.8681509,0.00022168,2]
[393384527,1762561839610,-299.8681509,0.00022168,2]
[393384528,1762561839619,-299.8681509,0.00022168,2]
[393384529,1762561839628,-299.8681509,0.00022168,2]
[393384531,1762561839638,-299.8681509,0.00022168,2]
[393384533,1762561839647,-299.8681509,0.00022168,2]
[393384535,1762561839657,-299.8681509,0.00022168,2]
[393384537,1762561839667,-299.8681509,0.00022168,2]
[393384538,1762561839677,-298.2214513,0.00022168,2]
[393384539,1762561839686,-160.0,0.00022185,2]
[393384540,1762561839695,-592.3400505,0.00022191,2]
[393384541,1762561839705,-285.90679783,0.00022191,2]
[393384542,1762561839717,-306.43325267,0.00022191,2]
[393384543,1762561839726,-592.3400505,0.00022191,2]
[393384544,1762561839736,-592.3400505,0.00022191,2]
[393384546,1762561839745,-299.8681509,0.00022191,2]
[393384547,1762561839755,-299.8681509,0.00022191,2]
[393384548,1762561839765,-299.8681509,0.00022191,2]
[393384549,1762561839775,-156.252343,0.00022191,7]
[393384550,1762561839784,-156.252343,0.00022191,7]
[393384551,1762561839797,-156.252343,0.00022191,7]
[393384552,1762561839807,-156.252343,0.00022191,7]
[393384553,1762561839816,-188.653858,0.00022191,2]
[393384554,1762561839826,-297.62415103,0.00022218,2]
[393384555,1762561839835,-299.8681509,0.00022278,2]
[393384556,1762561839847,-310.4590606,0.00022278,2]
[393384557,1762561839857,-435.4638535,0.00022278,2]
[393384558,1762561839868,-163.960249,0.00022278,2]
[393384559,1762561839877,-299.8681509,0.00022278,2]
[393384560,1762561839887,-163.960249,0.00022278,2]
[393384561,1762561839897,-163.960249,0.00022278,2]
[393384562,1762561839907,-299.8681509,0.00022278,2]
[393384564,1762561839918,-299.8681509,0.00022378,2]
[393384565,1762561839927,-347.0,0.00022402,2]
[393384566,1762561839936,-151.16372,0.00022443,3]
[393384567,1762561839946,-3704.033954,0.00022443,2]
[393384568,1762561839956,-156.252343,0.00022501,7]
[393384569,1762561839965,-156.252343,0.00022501,7]
[393384570,1762561839975,-156.252343,0.00022501,7]
[393384571,1762561839986,-156.252341,0.00022501,7]
[393384572,1762561839999,-7292.62139589,0.00022573,2]
[393384573,1762561840011,-13558.24602755,0.00022573,2]
[393384574,1762561840135,-790.60290983,0.00022573,2]
[393384575,1762561840196,-2610.94798405,0.00022573,2]
[393384584,1762561846811,-11016.26611802,0.00022573,2]
[393384585,1762561846820,-742.00140087,0.00022625,10]
[393384586,1762561846927,-357.51859913,0.00022625,10]
[393384587,1762561846938,-4494.13693686,0.00022635,2]
[393384588,1762561846951,-483.51,0.00022635,2]
[393384590,1762562047647,787.47,0.00037025,30]
[393384591,1762562048038,1574.94,0.00037025,30]
[393384592,1762562048443,2362.41,0.00037025,30]
[393384593,1762562048852,3149.88,0.00037025,30]
[393384594,1762562049249,3937.35,0.00037025,30]
[393384595,1762562049658,4724.82,0.00037025,30]
[393384596,1762562050047,5512.29,0.00037025,30]
[393384597,1762562050473,6299.76,0.00037025,30]
[393384598,1762562050877,7087.23,0.00037025,30]
[393384599,1762562051296,7874.7,0.00037025,30]
[393384628,1762562292096,684.478671,0.00037018,20]
[393384631,1762562599570,310.0,0.00037018,20]
[393384634,1762562857686,1000.0,0.00032,120]
[393384694,1762563032261,-177.49571317,0.00019418,2]
[393384696,1762563032271,-944.0,0.00019418,2]
[393384698,1762563032281,-300.0,0.00019484,2]
[393384699,1762563032291,-10897.21126301,0.00019485,2]
[393384701,1762563032300,-215.320156,0.00020763,2]
[393384703,1762563032309,-10000.01,0.00020987,2]
[393384704,1762563032319,-420.0,0.00021227,2]
[393384706,1762563032328,-209.44494154,0.00021418,2]
[393384708,1762563032338,-163.960249,0.00022168,2]
[393384709,1762563032347,-163.960249,0.00022168,2]
[393384711,1762563032356,-163.960249,0.00022168,2]
[393384713,1762563032366,-163.960249,0.000222,2]
[393384715,1762563032377,-163.960249,0.000222,2]
[393384716,1762563032388,-163.960249,0.000222,2]
[393384718,1762563032398,-163.960249,0.000222,2]
[393384721,1762563032407,-163.960249,0.000222,2]
[393384724,1762563032417,-168.0,0.00022212,2]
[393384725,1762563032428,-1804.98829164,0.00022217,2]
[393384728,1762563032444,-1726.5,0.00022217,2]
[393384730,1762563032455,-172.54567636,0.00022217,2]
[393384731,1762563032465,-168.0,0.0002226,2]
[393384733,1762563032474,-168.0,0.00022287,2]
[393384735,1762563032484,-102.06501541,0.000223,2]
[393384773,1762563040353,-61.89523359,0.000223,2]
[393384774,1762563040363,-1577.42950625,0.000223,2]
[393384775,1762563040374,-163.960249,0.000223,2]
[393384776,1762563040388,-163.960249,0.000223,2]
[393384777,1762563040397,-163.960249,0.000223,2]
[393384778,1762563040406,-959.2928467,0.00022331,7]
[393384779,1762563040416,-323.0671708,0.000224,2]
[393384780,1762563040426,-327.920498,0.000224,2]
[393384781,1762563040435,-592.3400505,0.000224,2]
[393384782,1762563040445,-299.8681509,0.000224,2]
[393384783,1762563040454,-163.960249,0.000224,2]
[393384784,1762563040466,-163.960249,0.000224,2]
[393384785,1762563040475,-14359.47972258,0.0002241,2]
[393384809,1762563239285,162.0,0.00037022,20]
[393384816,1762563586379,560.771137,0.00013699,2]
[393384879,1762564232365,-5000.0,0.00018384,2]
[393384880,1762564232374,-891.0,0.00018384,2]
[393384882,1762564232386,-368.06907305,0.0001857,2]
[393384883,1762564232396,-300.0,0.00019157,2]
[393384885,1762564232405,-5000.0,0.00019158,2]
[393384886,1762564232415,-180.37690008,0.00019568,2]
[393384887,1762564232424,-327.94859975,0.00019954,5]
[393384888,1762564232433,-560.771137,0.00020187,2]
[393384889,1762564232443,-500.0,0.000202,2]
[393384890,1762564232452,-263.04692264,0.000202,2]
[393384891,1762564232461,-500.0,0.000202,2]
[393384892,1762564232470,-500.0,0.000202,2]
[393384893,1762564232479,-500.68757968,0.000202,2]
[393384894,1762564232488,-500.0,0.000202,2]
[393384895,1762564232497,-3185.15478737,0.00020669,2]
[393384896,1762564232506,-174.411806,0.00020724,2]
[393384897,1762564232515,-160.0,0.00020729,2]
[393384898,1762564232525,-1000.0,0.00020748,2]
[393384899,1762564232534,-1000.0,0.00020748,2]
[393384900,1762564232543,-420.0,0.00020878,2]
[393384901,1762564232552,-3185.15478737,0.00020963,2]
[393384902,1762564232568,-838.3455467,0.00021137,2]
[393384903,1762564232582,-163.960249,0.00021178,2]
[393384904,1762564232592,-3185.15478737,0.00021201,2]
[393384906,1762564232602,-1470.34302611,0.00021296,2]
[393384907,1762564232612,-1000.0,0.00021338,2]
[393384908,1762564232621,-3185.15478737,0.0002151,2]
[393384909,1762564232630,-212.84474209,0.00021568,2]
[393384910,1762564232641,-206.58278829,0.00021659,2]
[393384911,1762564232651,-3185.15478737,0.00021786,2]
[393384912,1762564232660,-1000.0,0.00021911,2]
[393384913,1762564232669,-629.98084946,0.00021911,2]
[393384914,1762564232679,-6714.27072008,0.00021924,2]
[393384915,1762564232700,-688.13557208,0.00021924,2]
[393384916,1762564232715,-1416.99215554,0.00021924,2]
[393384917,1762564232725,-163.960249,0.00022,2]
[393384918,1762564232735,-156.2783308,0.00022,2]
[393384919,1762564232744,-163.960249,0.00022,2]
[393384920,1762564232753,-64.31803122,0.00022,2]
[393384928,1762564238368,-99.64221778,0.00022,2]
[393384929,1762564238378,-163.960249,0.00022,2]
[393384930,1762564238388,-3185.15478741,0.00022011,2]
[393384931,1762564238398,-163.960249,0.000221,2]
[393384932,1762564238408,-163.960249,0.000221,2]
[393384933,1762564238418,-267.61,0.00022273,2]
[393384934,1762564238428,-501.92045593,0.000223,2]
[393384935,1762564238439,-916.27,0.0002237,10]
[393384936,1762564238448,-763.55,0.0002237,10]
[393384937,1762564238458,-447.19491674,0.00022373,2]
[393384938,1762564238467,-500.0,0.00022373,2]
[393384939,1762564238478,-501.57632357,0.00022373,2]
[393384940,1762564238487,-500.0,0.00022373,2]
[393384941,1762564238497,-500.0,0.00022373,2]
[393384942,1762564238507,-162.7832863,0.00022373,2]
[393384943,1762564238517,-501.51752996,0.00022373,2]
[393384944,1762564238527,-502.06354049,0.00022373,2]
[393384945,1762564238538,-501.22748686,0.00022373,2]
[393384946,1762564238548,-501.00061196,0.00022373,2]
[393384947,1762564238559,-502.66351706,0.00022373,2]
[393384948,1762564238569,-217.09365186,0.00022378,2]
[393384949,1762564238579,-500.0,0.00022378,2]
[393384950,1762564238591,-392.01668248,0.00022378,2]
[393384951,1762564238601,-500.0,0.00022378,2]
[393384952,1762564238612,-500.0,0.00022378,2]
[393384953,1762564238622,-500.0,0.00022378,2]
[393384954,1762564238634,-500.0,0.00022378,2]
[393384955,1762564238648,-500.0,0.00022378,2]
[393384956,1762564238659,-500.0,0.00022378,2]
[393384957,1762564238669,-500.0,0.00022378,2]
[393384958,1762564238680,-500.0,0.00022378,2]
[393384959,1762564238691,-500.0,0.00022378,2]
[393384960,1762564238701,-500.0,0.00022378,2]
[393384961,1762564238711,-199.80964348,0.00022378,2]
[393384962,1762564238721,-500.0,0.00022378,2]
[393384963,1762564238731,-5163.47826726,0.0002238,2]
[393385283,1762564360895,321.35,0.00037022,20]
[393385287,1762565048117,4580.0,0.0003702,20]
[393385298,1762565407868,282.43294376,0.0003702,60]
[393385299,1762565409634,347.90515592,0.0003702,30]
[393385303,1762565415760,155.10576791,0.0003702,30]
[393385327,1762565432703,-300.0,0.00020191,2]
[393385328,1762565432714,-39.16925909,0.00020192,2]
[393385345,1762565438544,-421.58537185,0.00020192,2]
[393385347,1762565438554,-829.35833569,0.00020192,2]
[393385349,1762565438563,-574.16456423,0.00020192,2]
[393385351,1762565438575,-900.25025477,0.00020192,2]
[393385353,1762565438585,-865.92895523,0.00020192,2]
[393385526,1762565448842,594.7,0.0003287,120]
[393385550,1762565511081,314.17299549,0.0003702,60]
[393385554,1762565513980,500.0,0.0003702,60]
[393385555,1762565514237,220.16471459,0.0003702,60]
[393385559,1762565520044,203.86414288,0.0003702,60]
[393385560,1762565521480,249.60650797,0.0003702,60]
[393385563,1762565525803,396.44311624,0.0003702,60]
[393385570,1762565533737,209.5962621,0.0003702,60]
[393385575,1762565536278,267.26161494,0.0003702,60]
[393385579,1762565542223,177.45686643,0.0003702,60]
[393385580,1762565545015,195.98543,0.0003702,120]
[393385582,1762565547246,284.45754616,0.0003702,60]
[393385595,1762565564043,157.54112916,0.0003702,60]
[393385596,1762565564773,185.05402966,0.0003702,60]
[393385605,1762565572721,188.57664569,0.0003702,60]
[393385619,1762565583291,500.0,0.0003702,60]
[393385620,1762565583511,204.84289528,0.0003702,60]
[393385621,1762565584714,500.0,0.0003702,60]
[393385622,1762565585223,245.4431,0.0003702,60]
[393385624,1762565586055,184.39820971,0.0003702,60]
[393385628,1762565591562,274.43940566,0.0003702,60]
[393385635,1762565596335,283.97431111,0.0003702,60]
[393385636,1762565598411,358.20078561,0.0003702,60]
[393385639,1762565602645,155.50010887,0.0003702,60]
[393385645,1762565609928,324.63826613,0.0003702,60]
[393385649,1762565613682,408.76623069,0.0003702,60]
[393385661,1762565631581,375.03551439,0.0003702,60]
[393385663,1762565635005,313.75579159,0.0003702,60]
[393385668,1762565657636,262.20912738,0.0003702,60]
[393385672,1762565688872,5495.0,0.0003702,20]
[393385675,1762565716415,1875.0,0.0003702,20]
[393385681,1762565775650,150.0,0.0003702,20]
[393385682,1762565775845,150.0,0.0003702,20]
[393385683,1762565776052,150.0,0.0003702,20]
[393385684,1762565776250,150.0,0.0003702,20]
[393385685,1762565776443,201.37670814,0.0003702,20]
[393385693,1762566002584,153.98392904,0.00037021,60]
[393385696,1762566059383,525.79519815,0.00037021,20]
[393385699,1762566092055,9999.999999,0.00037021,31]
[393385701,1762566098105,20000.0,0.00037021,20]
[393385702,1762566109344,20000.0,0.00037021,20]
[393385703,1762566121778,25000.0,0.00037021,25]
[393385704,1762566148531,25000.0,0.00037021,30]
[393385705,1762566172665,25000.0,0.00037021,35]
[393385706,1762566196097,159.0,0.00037021,120]
[393385707,1762566217729,25000.0,0.00037021,24]
[393385709,1762566234371,25000.0,0.00037021,27]
[393385710,1762566257639,25000.0,0.00037021,20]
[393385713,1762566324027,-1437.84419946,0.00017312,2]
[393385714,1762566324054,-236.45855829,0.00017316,2]
[393385715,1762566324100,-270.23835233,0.00017316,2]
[393385716,1762566324136,-422.24742552,0.00017316,2]
[393385717,1762566324170,-150.00581284,0.00017356,2]
[393385718,1762566324204,-300.24001324,0.00017397,2]
[393385719,1762566324239,-183.66789302,0.00017421,2]
[393385720,1762566324272,-1310.48260459,0.0001753,2]
[393385721,1762566375260,980.91322005,0.00018,2]
[393385722,1762566384163,5000.0,0.00018,2]
[393385723,1762566406556,4464.42203705,0.00018,2]
[393385724,1762566418963,740.4154989,0.00037021,120]
[393385725,1762566424668,320.0,0.00037021,20]
[393385727,1762566438387,530.33142,0.00013699,2]